[Event "Late-Titled-Tuesday-Blitz-October-17-2023"]
[Site "Chess.com"]
[Date "2023.10.17"]
[Round "3"]
[White "Miguelitro69"]
[Black "stolencandy13"]
[Result "1-0"]
[WhiteElo "2319"]
[BlackElo "2522"]
[TimeControl "180+1"]
[EndTime "14:29:03 PDT"]
[Termination "Miguelitro69 won on time"]

1. e4 {[%clk 0:03:00.9]} 1... c6 {[%clk 0:03:00]} 2. d4 {[%clk 0:02:59.9]} 2...
d5 {[%clk 0:03:00.9]} 3. Nc3 {[%clk 0:03:00.1]} 3... dxe4 {[%clk 0:03:01]} 4.
Nxe4 {[%clk 0:03:00.7]} 4... Bf5 {[%clk 0:03:01.6]} 5. Ng3 {[%clk 0:03:00.6]}
5... Bg6 {[%clk 0:03:01.9]} 6. Nf3 {[%clk 0:03:00.6]} 6... Nd7 {[%clk
0:03:02.2]} 7. h4 {[%clk 0:03:00.4]} 7... h6 {[%clk 0:03:02.4]} 8. h5 {[%clk
0:03:00.7]} 8... Bh7 {[%clk 0:03:02.8]} 9. Bd3 {[%clk 0:03:00.7]} 9... Bxd3
{[%clk 0:03:03.3]} 10. Qxd3 {[%clk 0:03:01.2]} 10... e6 {[%clk 0:03:03.9]} 11.
Bd2 {[%clk 0:03:01.7]} 11... Ngf6 {[%clk 0:03:04.5]} 12. O-O-O {[%clk
0:03:02.2]} 12... Be7 {[%clk 0:03:05.1]} 13. Kb1 {[%clk 0:03:02.6]} 13... a5
{[%clk 0:03:03.8]} 14. Qe2 {[%clk 0:02:57.3]} 14... a4 {[%clk 0:03:03.3]} 15.
Ne5 {[%clk 0:02:57.5]} 15... a3 {[%clk 0:03:02.7]} 16. b3 {[%clk 0:02:54.4]}
16... O-O {[%clk 0:03:01.8]} 17. Bc3 {[%clk 0:02:46.9]} 17... Nd5 {[%clk
0:02:54.4]} 18. Ba1 {[%clk 0:02:31.8]} 18... Bb4 {[%clk 0:02:46.5]} 19. Qf3
{[%clk 0:02:27.8]} 19... Nxe5 {[%clk 0:02:26.9]} 20. dxe5 {[%clk 0:02:26.3]}
20... Qe7 {[%clk 0:02:26.7]} 21. c3 {[%clk 0:02:24.7]} 21... Ba5 {[%clk
0:02:22.5]} 22. Ne4 {[%clk 0:02:23.1]} 22... Rad8 {[%clk 0:02:12.2]} 23. g4
{[%clk 0:02:21.1]} 23... Bc7 {[%clk 0:02:09.3]} 24. c4 {[%clk 0:02:19.7]} 24...
Nb4 {[%clk 0:02:05.8]} 25. g5 {[%clk 0:02:20]} 25... Rxd1+ {[%clk 0:02:03.5]}
26. Rxd1 {[%clk 0:02:18.5]} 26... hxg5 {[%clk 0:02:01.2]} 27. h6 {[%clk
0:02:09.8]} 27... Rd8 {[%clk 0:01:59.3]} 28. Rh1 {[%clk 0:02:04.9]} 28... Qd7
{[%clk 0:01:20.8]} 29. hxg7 {[%clk 0:02:01.7]} 29... Qd3+ {[%clk 0:01:12.8]} 30.
Qxd3 {[%clk 0:02:00.5]} 30... Rxd3 {[%clk 0:01:13.7]} 31. Nf6+ {[%clk
0:01:43.8]} 31... Kxg7 {[%clk 0:01:09.2]} 32. Ne8+ {[%clk 0:01:43.9]} 32... Kg6
{[%clk 0:01:06.7]} 33. Nxc7 {[%clk 0:01:44.8]} 33... Rf3 {[%clk 0:00:47.8]} 34.
Bc3 {[%clk 0:01:41.3]} 34... Nd3 {[%clk 0:00:43.9]} 35. Bd4 {[%clk 0:01:35.6]}
35... Rf4 {[%clk 0:00:33]} 36. Be3 {[%clk 0:01:27.7]} 36... Re4 {[%clk
0:00:24.7]} 37. Ne8 {[%clk 0:01:23.8]} 37... Rxe5 {[%clk 0:00:20.9]} 38. Nd6
{[%clk 0:01:22.4]} 38... f5 {[%clk 0:00:18.9]} 39. Rd1 {[%clk 0:01:05]} 39...
Nb4 {[%clk 0:00:14.8]} 40. Rg1 {[%clk 0:00:53.5]} 40... g4 {[%clk 0:00:12]} 41.
Nxb7 {[%clk 0:00:45.6]} 41... Re4 {[%clk 0:00:05.5]} 42. Nc5 {[%clk 0:00:42.8]}
42... Re5 {[%clk 0:00:05.4]} 43. Bd4 {[%clk 0:00:34.2]} 43... Re2 {[%clk
0:00:04.6]} 44. Nxe6 {[%clk 0:00:33.5]} 44... Rxe6 {[%clk 0:00:04]} 45. Bc5
{[%clk 0:00:30.9]} 45... Nd3 {[%clk 0:00:03.2]} 46. Be3 {[%clk 0:00:18.8]} 46...
Re4 {[%clk 0:00:02.2]} 47. Kc2 {[%clk 0:00:16.8]} 47... Nb4+ {[%clk 0:00:01.9]}
48. Kc3 {[%clk 0:00:16.7]} 48... Na6 {[%clk 0:00:02.3]} 49. b4 {[%clk
0:00:16.6]} 49... Nc7 {[%clk 0:00:02.2]} 50. Bb6 {[%clk 0:00:12.8]} 50... Ne6
{[%clk 0:00:01.2]} 51. f3 {[%clk 0:00:13.3]} 51... Re2 {[%clk 0:00:01.2]} 52.
Kb3 {[%clk 0:00:13.4]} 1-0

[Event "Late-Titled-Tuesday-Blitz-October-17-2023"]
[Site "Chess.com"]
[Date "2023.10.17"]
[Round "3"]
[White "AradNazari"]
[Black "Thormento16"]
[Result "1/2-1/2"]
[WhiteElo "2896"]
[BlackElo "2345"]
[TimeControl "180+1"]
[EndTime "14:29:05 PDT"]
[Termination "Game drawn by repetition"]

1. e4 {[%clk 0:02:59.1]} 1... c5 {[%clk 0:02:59.9]} 2. Nf3 {[%clk 0:02:59.6]}
2... d6 {[%clk 0:03:00.5]} 3. Bb5+ {[%clk 0:02:59.4]} 3... Bd7 {[%clk
0:03:00.3]} 4. Bxd7+ {[%clk 0:02:59.4]} 4... Nxd7 {[%clk 0:03:01.2]} 5. O-O
{[%clk 0:02:59.2]} 5... Ngf6 {[%clk 0:03:01.8]} 6. Qe2 {[%clk 0:02:58.3]} 6...
Rc8 {[%clk 0:03:01]} 7. b3 {[%clk 0:02:58.6]} 7... g6 {[%clk 0:02:58.3]} 8. Bb2
{[%clk 0:02:58]} 8... Bg7 {[%clk 0:02:58.7]} 9. c4 {[%clk 0:02:57.8]} 9... O-O
{[%clk 0:02:58.9]} 10. Nc3 {[%clk 0:02:57.9]} 10... e6 {[%clk 0:02:57.5]} 11.
Rfd1 {[%clk 0:02:55.2]} 11... Ne5 {[%clk 0:02:54.5]} 12. Ne1 {[%clk 0:02:39.4]}
12... Nc6 {[%clk 0:02:54.2]} 13. Nc2 {[%clk 0:02:38.8]} 13... a6 {[%clk
0:02:40.8]} 14. h3 {[%clk 0:02:36]} 14... Nd4 {[%clk 0:02:35.9]} 15. Qd3 {[%clk
0:02:31.2]} 15... Nh5 {[%clk 0:02:30.1]} 16. Nxd4 {[%clk 0:02:27.1]} 16... cxd4
{[%clk 0:02:27]} 17. Ne2 {[%clk 0:02:21.6]} 17... e5 {[%clk 0:02:25.1]} 18. b4
{[%clk 0:02:03.1]} 18... f5 {[%clk 0:02:20.7]} 19. Rdc1 {[%clk 0:01:33.8]} 19...
Qg5 {[%clk 0:02:13.6]} 20. Rc2 {[%clk 0:01:13.5]} 20... Nf6 {[%clk 0:01:53.1]}
21. Ng3 {[%clk 0:01:05.5]} 21... f4 {[%clk 0:01:46.1]} 22. Nf1 {[%clk
0:01:05.5]} 22... f3 {[%clk 0:01:44.9]} 23. Qxf3 {[%clk 0:01:00.4]} 23... Nd5
{[%clk 0:01:44.8]} 24. Qb3 {[%clk 0:00:37.9]} 24... Nf4 {[%clk 0:01:31.4]} 25.
c5+ {[%clk 0:00:38.3]} 25... Kh8 {[%clk 0:01:28.8]} 26. Ng3 {[%clk 0:00:26.2]}
26... dxc5 {[%clk 0:01:12.4]} 27. Rxc5 {[%clk 0:00:25.6]} 27... b6 {[%clk
0:01:05.7]} 28. Rxc8 {[%clk 0:00:22.2]} 28... Rxc8 {[%clk 0:01:06.6]} 29. Rc1
{[%clk 0:00:18.4]} 29... Rxc1+ {[%clk 0:01:06.2]} 30. Bxc1 {[%clk 0:00:19.3]}
30... h5 {[%clk 0:01:06.6]} 31. Qf3 {[%clk 0:00:11.8]} 31... Qe7 {[%clk
0:00:57.1]} 32. a3 {[%clk 0:00:09.8]} 32... Qc7 {[%clk 0:00:55.8]} 33. Qd1
{[%clk 0:00:10.1]} 33... h4 {[%clk 0:00:54.3]} 34. Nf1 {[%clk 0:00:03.4]} 34...
Qxc1 {[%clk 0:00:53.6]} 35. Qg4 {[%clk 0:00:02]} 35... Bf6 {[%clk 0:00:42.7]}
36. g3 {[%clk 0:00:01.9]} 36... Nh5 {[%clk 0:00:30.6]} 37. Qxg6 {[%clk 0:00:02]}
37... Qd1 {[%clk 0:00:27.3]} 38. g4 {[%clk 0:00:02.5]} 38... Nf4 {[%clk
0:00:23.5]} 39. Qxf6+ {[%clk 0:00:03.2]} 39... Kh7 {[%clk 0:00:23.3]} 40. Qf5+
{[%clk 0:00:03.5]} 40... Kh6 {[%clk 0:00:22.2]} 41. Qf6+ {[%clk 0:00:03.8]}
41... Kh7 {[%clk 0:00:22.3]} 42. Qf5+ {[%clk 0:00:04.2]} 42... Kh6 {[%clk
0:00:22.5]} 43. Qxe5 {[%clk 0:00:02.5]} 43... Qf3 {[%clk 0:00:18.7]} 44. Qf6+
{[%clk 0:00:03]} 44... Kh7 {[%clk 0:00:18.3]} 45. Qf7+ {[%clk 0:00:03.6]} 45...
Kh8 {[%clk 0:00:18.1]} 46. Qf8+ {[%clk 0:00:03.7]} 46... Kh7 {[%clk 0:00:18.7]}
47. Qe7+ {[%clk 0:00:04.1]} 47... Kg8 {[%clk 0:00:17.1]} 48. Qd8+ {[%clk
0:00:04.1]} 48... Kg7 {[%clk 0:00:16.5]} 49. Qe7+ {[%clk 0:00:04.4]} 49... Kg8
{[%clk 0:00:16.8]} 50. Qd8+ {[%clk 0:00:04.9]} 50... Kg7 {[%clk 0:00:17]} 51.
Qg5+ {[%clk 0:00:05.6]} 51... Kf8 {[%clk 0:00:15.7]} 52. Qf6+ {[%clk 0:00:06.1]}
52... Kg8 {[%clk 0:00:15.7]} 53. Qd8+ {[%clk 0:00:04.8]} 1/2-1/2

[Event "Late-Titled-Tuesday-Blitz-October-17-2023"]
[Site "Chess.com"]
[Date "2023.10.17"]
[Round "3"]
[White "effefe"]
[Black "maciek_92"]
[Result "0-1"]
[WhiteElo "2348"]
[BlackElo "2847"]
[TimeControl "180+1"]
[EndTime "14:29:10 PDT"]
[Termination "maciek_92 won on time"]

1. d4 {[%clk 0:03:00.9]} 1... Nf6 {[%clk 0:02:59.3]} 2. c4 {[%clk 0:03:00.6]}
2... d6 {[%clk 0:02:59.8]} 3. Nf3 {[%clk 0:02:56.4]} 3... Nbd7 {[%clk
0:03:00.1]} 4. Nc3 {[%clk 0:02:52.9]} 4... e5 {[%clk 0:02:59.9]} 5. e4 {[%clk
0:02:50.7]} 5... Be7 {[%clk 0:02:57.5]} 6. Be2 {[%clk 0:02:45.3]} 6... O-O
{[%clk 0:02:57.3]} 7. O-O {[%clk 0:02:45.4]} 7... c6 {[%clk 0:02:56.7]} 8. h3
{[%clk 0:02:34.2]} 8... Re8 {[%clk 0:02:56.6]} 9. Be3 {[%clk 0:02:30.8]} 9...
Bf8 {[%clk 0:02:47.5]} 10. d5 {[%clk 0:02:17.1]} 10... c5 {[%clk 0:02:47.7]} 11.
Nh2 {[%clk 0:02:03]} 11... a6 {[%clk 0:02:44.5]} 12. a4 {[%clk 0:02:02.1]} 12...
g6 {[%clk 0:02:32.3]} 13. Qd2 {[%clk 0:01:41.4]} 13... Bg7 {[%clk 0:02:08.1]}
14. Bf3 {[%clk 0:01:36.2]} 14... Kh8 {[%clk 0:01:50]} 15. g4 {[%clk 0:01:30.5]}
15... Ng8 {[%clk 0:01:48.5]} 16. Kh1 {[%clk 0:01:16.4]} 16... Rf8 {[%clk
0:01:10]} 17. Rg1 {[%clk 0:01:13.8]} 17... Qa5 {[%clk 0:01:08.1]} 18. g5 {[%clk
0:01:03.8]} 18... f5 {[%clk 0:00:54.1]} 19. gxf6 {[%clk 0:00:45.8]} 19... Ndxf6
{[%clk 0:00:53.8]} 20. Rg3 {[%clk 0:00:34.1]} 20... Bd7 {[%clk 0:00:50.7]} 21.
Rag1 {[%clk 0:00:32.6]} 21... Rf7 {[%clk 0:00:49.7]} 22. Ng4 {[%clk 0:00:24.4]}
22... Nh5 {[%clk 0:00:43.3]} 23. Kh2 {[%clk 0:00:06.9]} 23... Nxg3 {[%clk
0:00:42.9]} 24. Rxg3 {[%clk 0:00:07.8]} 24... Raf8 {[%clk 0:00:42.7]} 25. Kg2
{[%clk 0:00:07.9]} 25... Bxa4 {[%clk 0:00:30.9]} 26. Nh6 {[%clk 0:00:07.4]}
26... Nxh6 {[%clk 0:00:28.7]} 27. Bxh6 {[%clk 0:00:08.3]} 27... Bd7 {[%clk
0:00:25.5]} 28. Bxg7+ {[%clk 0:00:07.7]} 28... Rxg7 {[%clk 0:00:25.2]} 29. h4
{[%clk 0:00:08]} 29... Qd8 {[%clk 0:00:24.7]} 30. Qh6 {[%clk 0:00:07.5]} 30...
Rf4 {[%clk 0:00:21.7]} 31. h5 {[%clk 0:00:05.8]} 31... Rh4 {[%clk 0:00:15.3]}
32. Nd1 {[%clk 0:00:04.6]} 32... Qf8 {[%clk 0:00:13.5]} 33. Ne3 {[%clk
0:00:04.5]} 33... Bh3+ {[%clk 0:00:08]} 34. Kg1 {[%clk 0:00:04]} 34... Qf4
{[%clk 0:00:05.9]} 35. Qxf4 {[%clk 0:00:03.1]} 35... exf4 {[%clk 0:00:06.2]} 36.
Ng2 {[%clk 0:00:02.3]} 36... Bxg2 {[%clk 0:00:05.4]} 37. Rxg2 {[%clk 0:00:02.8]}
37... gxh5 {[%clk 0:00:06.1]} 38. Rxg7 {[%clk 0:00:02]} 38... Kxg7 {[%clk
0:00:07]} 39. Kg2 {[%clk 0:00:02.4]} 39... Kf6 {[%clk 0:00:07.4]} 40. Bd1 {[%clk
0:00:02]} 40... f3+ {[%clk 0:00:07.3]} 41. Kxf3 {[%clk 0:00:02.2]} 41... Ke5
{[%clk 0:00:08.2]} 42. Ke3 {[%clk 0:00:02.9]} 42... Rf4 {[%clk 0:00:08.8]} 43.
f3 {[%clk 0:00:03.5]} 43... h4 {[%clk 0:00:09.7]} 44. Be2 {[%clk 0:00:03.9]}
44... h3 {[%clk 0:00:10.3]} 45. Bf1 {[%clk 0:00:04.6]} 45... h2 {[%clk
0:00:11.2]} 46. Bg2 {[%clk 0:00:05.2]} 46... h5 {[%clk 0:00:11.3]} 47. Kf2
{[%clk 0:00:05.1]} 47... h4 {[%clk 0:00:12]} 48. Bh1 {[%clk 0:00:03.5]} 48... b5
{[%clk 0:00:12.6]} 49. Kg2 {[%clk 0:00:03.7]} 49... b4 {[%clk 0:00:11.2]} 50.
Kxh2 {[%clk 0:00:03.9]} 50... b3 {[%clk 0:00:11.2]} 51. Kh3 {[%clk 0:00:03.3]}
51... a5 {[%clk 0:00:11.6]} 52. Bg2 {[%clk 0:00:03.1]} 52... a4 {[%clk
0:00:12.5]} 0-1

[Event "Late-Titled-Tuesday-Blitz-October-17-2023"]
[Site "Chess.com"]
[Date "2023.10.17"]
[Round "3"]
[White "Alphafischer2019"]
[Black "szachmistrz2500"]
[Result "0-1"]
[WhiteElo "2594"]
[BlackElo "2428"]
[TimeControl "180+1"]
[EndTime "14:29:12 PDT"]
[Termination "szachmistrz2500 won by checkmate"]

1. e4 {[%clk 0:03:00.9]} 1... c5 {[%clk 0:02:59.1]} 2. d3 {[%clk 0:03:00.1]}
2... Nc6 {[%clk 0:02:57.6]} 3. g3 {[%clk 0:02:59.8]} 3... g6 {[%clk 0:02:55.9]}
4. Bg2 {[%clk 0:02:59.8]} 4... Bg7 {[%clk 0:02:55.7]} 5. f4 {[%clk 0:03:00.2]}
5... Rb8 {[%clk 0:02:49.6]} 6. Nf3 {[%clk 0:02:59.4]} 6... b5 {[%clk 0:02:49.6]}
7. O-O {[%clk 0:02:58.6]} 7... e6 {[%clk 0:02:46]} 8. c3 {[%clk 0:02:56.5]} 8...
b4 {[%clk 0:02:45.4]} 9. Be3 {[%clk 0:02:56.3]} 9... d6 {[%clk 0:02:40.1]} 10.
d4 {[%clk 0:02:50.9]} 10... bxc3 {[%clk 0:02:39.1]} 11. bxc3 {[%clk 0:02:50]}
11... cxd4 {[%clk 0:02:38.7]} 12. cxd4 {[%clk 0:02:49.2]} 12... Nge7 {[%clk
0:02:35.2]} 13. Nc3 {[%clk 0:02:48.6]} 13... O-O {[%clk 0:02:32.4]} 14. Rc1
{[%clk 0:02:47]} 14... Ba6 {[%clk 0:02:32]} 15. Re1 {[%clk 0:02:47]} 15... d5
{[%clk 0:02:25.4]} 16. e5 {[%clk 0:02:46.5]} 16... Na5 {[%clk 0:02:09.2]} 17. g4
{[%clk 0:02:45.1]} 17... Nc4 {[%clk 0:02:08.2]} 18. Bf2 {[%clk 0:02:45.8]} 18...
Qa5 {[%clk 0:02:06.5]} 19. Nd2 {[%clk 0:02:29.3]} 19... Nb2 {[%clk 0:02:05.7]}
20. Qf3 {[%clk 0:02:12]} 20... Nd3 {[%clk 0:02:05.4]} 21. Nb3 {[%clk 0:02:09.4]}
21... Qa3 {[%clk 0:02:00.4]} 22. Rcd1 {[%clk 0:01:56.3]} 22... Nxe1 {[%clk
0:01:57.6]} 23. Rxe1 {[%clk 0:01:57.2]} 23... Bc4 {[%clk 0:01:52.8]} 24. Nc5
{[%clk 0:01:54]} 24... Qa5 {[%clk 0:01:15.1]} 25. Nd7 {[%clk 0:01:46.2]} 25...
Rb2 {[%clk 0:01:14.8]} 26. Nxf8 {[%clk 0:01:45.4]} 26... Bxf8 {[%clk 0:01:15.7]}
27. h3 {[%clk 0:01:37.9]} 27... Rc2 {[%clk 0:01:15.4]} 28. Re3 {[%clk
0:01:38.5]} 28... Bxa2 {[%clk 0:01:11.1]} 29. h4 {[%clk 0:01:31.4]} 29... Rc1+
{[%clk 0:01:10.6]} 30. Kh2 {[%clk 0:01:31.3]} 30... Bb1 {[%clk 0:01:10.9]} 31.
Nxb1 {[%clk 0:01:27.3]} 31... Rxb1 {[%clk 0:01:10.8]} 32. h5 {[%clk 0:01:27.7]}
32... Rb2 {[%clk 0:01:03.8]} 33. hxg6 {[%clk 0:01:24.9]} 33... hxg6 {[%clk
0:01:04]} 34. Bh4 {[%clk 0:01:22.6]} 34... Qd2 {[%clk 0:01:02]} 35. Qh3 {[%clk
0:01:11.7]} 35... Nc6 {[%clk 0:00:55.4]} 36. Bf6 {[%clk 0:01:05.7]} 36... Bg7
{[%clk 0:00:55.1]} 37. Bxg7 {[%clk 0:00:54.9]} 37... Kxg7 {[%clk 0:00:55.1]} 38.
g5 {[%clk 0:00:53.1]} 38... Nxd4 {[%clk 0:00:48.7]} 39. Kg1 {[%clk 0:00:18.2]}
39... Nf5 {[%clk 0:00:41.9]} 40. Rc3 {[%clk 0:00:16.8]} 40... Rb1+ {[%clk
0:00:35.9]} 41. Bf1 {[%clk 0:00:16.7]} 41... Qxf4 {[%clk 0:00:30.3]} 42. Rc8
{[%clk 0:00:15.7]} 42... Qxg5+ {[%clk 0:00:29.2]} 43. Kh2 {[%clk 0:00:10.4]}
43... Qf4+ {[%clk 0:00:20.8]} 44. Kg1 {[%clk 0:00:08.6]} 44... Qe3+ {[%clk
0:00:17.9]} 45. Kh2 {[%clk 0:00:07.1]} 45... Qf2+ {[%clk 0:00:14.6]} 46. Qg2
{[%clk 0:00:04.7]} 46... Rxf1 {[%clk 0:00:13.8]} 47. Rg8+ {[%clk 0:00:05.3]}
47... Kxg8 {[%clk 0:00:12.8]} 48. Kh3 {[%clk 0:00:05.5]} 48... Qxg2+ {[%clk
0:00:12]} 49. Kxg2 {[%clk 0:00:05.5]} 49... Ne3+ {[%clk 0:00:11.4]} 50. Kh3
{[%clk 0:00:06.4]} 50... d4 {[%clk 0:00:11.4]} 51. Kh4 {[%clk 0:00:07]} 51... d3
{[%clk 0:00:11.7]} 52. Kg5 {[%clk 0:00:07.7]} 52... Kg7 {[%clk 0:00:12.1]} 53.
Kh4 {[%clk 0:00:07.8]} 53... d2 {[%clk 0:00:12.3]} 54. Kg5 {[%clk 0:00:08.5]}
54... d1=Q {[%clk 0:00:11.7]} 55. Kh4 {[%clk 0:00:09.4]} 55... Qg4# {[%clk
0:00:11.9]} 0-1

[Event "Late-Titled-Tuesday-Blitz-October-17-2023"]
[Site "Chess.com"]
[Date "2023.10.17"]
[Round "3"]
[White "Aygehovit1992"]
[Black "Necromon"]
[Result "0-1"]
[WhiteElo "2657"]
[BlackElo "2507"]
[TimeControl "180+1"]
[EndTime "14:29:15 PDT"]
[Termination "Necromon won by resignation"]

1. e4 {[%clk 0:03:00]} 1... c5 {[%clk 0:03:00.3]} 2. Nc3 {[%clk 0:02:58.5]} 2...
Nc6 {[%clk 0:02:57.3]} 3. Bb5 {[%clk 0:02:58.2]} 3... g6 {[%clk 0:02:54.8]} 4.
Bxc6 {[%clk 0:02:56.1]} 4... dxc6 {[%clk 0:02:55.2]} 5. f4 {[%clk 0:02:57]} 5...
e5 {[%clk 0:02:54.9]} 6. d3 {[%clk 0:02:52.6]} 6... Bg7 {[%clk 0:02:52.9]} 7.
Nf3 {[%clk 0:02:52.1]} 7... exf4 {[%clk 0:02:42.5]} 8. Bxf4 {[%clk 0:02:53]}
8... Nf6 {[%clk 0:02:42.2]} 9. Qd2 {[%clk 0:02:49.8]} 9... Bg4 {[%clk 0:02:36]}
10. O-O {[%clk 0:02:48.2]} 10... O-O {[%clk 0:02:07.7]} 11. Kh1 {[%clk 0:02:43]}
11... Nd7 {[%clk 0:01:56.5]} 12. Bh6 {[%clk 0:02:36.9]} 12... f5 {[%clk
0:01:50.3]} 13. Bxg7 {[%clk 0:02:33.8]} 13... Kxg7 {[%clk 0:01:50.2]} 14. Ng5
{[%clk 0:02:30.1]} 14... Qe7 {[%clk 0:01:42.1]} 15. exf5 {[%clk 0:02:14.4]}
15... Bxf5 {[%clk 0:01:37.8]} 16. Rae1 {[%clk 0:02:13.8]} 16... Qd6 {[%clk
0:01:34.9]} 17. h3 {[%clk 0:01:45.5]} 17... Rae8 {[%clk 0:01:20.6]} 18. Rxe8
{[%clk 0:01:44]} 18... Rxe8 {[%clk 0:01:20.5]} 19. Nce4 {[%clk 0:01:43]} 19...
Bxe4 {[%clk 0:01:08.9]} 20. Qc3+ {[%clk 0:01:31.6]} 20... Qe5 {[%clk 0:00:58.4]}
21. Rf7+ {[%clk 0:01:18.9]} 21... Kg8 {[%clk 0:00:56.5]} 22. Qxe5 {[%clk
0:00:36.5]} 22... Nxe5 {[%clk 0:00:55]} 23. Rxb7 {[%clk 0:00:35.6]} 23... Bd5
{[%clk 0:00:48.1]} 24. c4 {[%clk 0:00:27.8]} 24... Bf7 {[%clk 0:00:39.6]} 25.
Rxa7 {[%clk 0:00:25.1]} 25... h6 {[%clk 0:00:39.7]} 26. Ne4 {[%clk 0:00:25.4]}
26... Kg7 {[%clk 0:00:36.8]} 27. Nxc5 {[%clk 0:00:25.6]} 27... Kf6 {[%clk
0:00:30.4]} 28. a4 {[%clk 0:00:16.2]} 28... Rd8 {[%clk 0:00:27.7]} 29. Rc7
{[%clk 0:00:15.5]} 29... Nxd3 {[%clk 0:00:23.6]} 30. Rxc6+ {[%clk 0:00:15.8]}
30... Kg5 {[%clk 0:00:19.6]} 31. Nxd3 {[%clk 0:00:13.4]} 31... Rxd3 {[%clk
0:00:19.4]} 32. a5 {[%clk 0:00:14.3]} 32... Rb3 {[%clk 0:00:17.6]} 33. Rb6
{[%clk 0:00:08.6]} 33... Bxc4 {[%clk 0:00:15.4]} 34. Rxb3 {[%clk 0:00:08.6]}
34... Bxb3 {[%clk 0:00:15.7]} 35. a6 {[%clk 0:00:08.5]} 35... Bc4 {[%clk
0:00:16]} 36. a7 {[%clk 0:00:08]} 36... Bd5 {[%clk 0:00:16.6]} 37. Kg1 {[%clk
0:00:07.5]} 37... Kf4 {[%clk 0:00:16.8]} 38. Kf2 {[%clk 0:00:08.1]} 38... g5
{[%clk 0:00:15.8]} 39. b4 {[%clk 0:00:06.3]} 39... h5 {[%clk 0:00:15.3]} 40. b5
{[%clk 0:00:05.7]} 40... Bb7 {[%clk 0:00:14.2]} 41. b6 {[%clk 0:00:05.4]} 41...
g4 {[%clk 0:00:14.4]} 42. g3+ {[%clk 0:00:05.4]} 42... Ke4 {[%clk 0:00:14]} 43.
hxg4 {[%clk 0:00:04.7]} 43... hxg4 {[%clk 0:00:14.3]} 44. Ke2 {[%clk 0:00:05.2]}
44... Ba8 {[%clk 0:00:13.7]} 45. Kd2 {[%clk 0:00:04.3]} 45... Kf3 {[%clk
0:00:14]} 46. Kc3 {[%clk 0:00:03.5]} 46... Kxg3 {[%clk 0:00:14.4]} 47. Kd4
{[%clk 0:00:04.4]} 47... Kf4 {[%clk 0:00:14.8]} 48. Kc5 {[%clk 0:00:04.6]} 48...
g3 {[%clk 0:00:14.6]} 49. Kd6 {[%clk 0:00:05.5]} 49... g2 {[%clk 0:00:14.9]} 50.
Kc7 {[%clk 0:00:06.4]} 50... g1=Q {[%clk 0:00:14]} 51. Kb8 {[%clk 0:00:05.6]}
51... Qg8+ {[%clk 0:00:13.2]} 52. Kc7 {[%clk 0:00:05.5]} 52... Qd5 {[%clk
0:00:13.4]} 0-1

[Event "Late-Titled-Tuesday-Blitz-October-17-2023"]
[Site "Chess.com"]
[Date "2023.10.17"]
[Round "3"]
[White "norwaytoadog"]
[Black "DawidCzerw"]
[Result "0-1"]
[WhiteElo "2337"]
[BlackElo "2558"]
[TimeControl "180+1"]
[EndTime "14:29:22 PDT"]
[Termination "DawidCzerw won on time"]

1. e4 {[%clk 0:03:00]} 1... c5 {[%clk 0:03:00.2]} 2. Nf3 {[%clk 0:03:00.5]} 2...
Nc6 {[%clk 0:03:00.7]} 3. Bb5 {[%clk 0:03:01.1]} 3... e6 {[%clk 0:03:00.8]} 4.
Bxc6 {[%clk 0:03:01.1]} 4... bxc6 {[%clk 0:03:01.7]} 5. d3 {[%clk 0:03:01.6]}
5... Ne7 {[%clk 0:03:02]} 6. h4 {[%clk 0:03:01.1]} 6... d6 {[%clk 0:03:02.5]} 7.
h5 {[%clk 0:03:00.9]} 7... e5 {[%clk 0:03:02.9]} 8. h6 {[%clk 0:03:00.8]} 8...
Bg4 {[%clk 0:03:02.4]} 9. hxg7 {[%clk 0:02:57.9]} 9... Bxg7 {[%clk 0:03:02.2]}
10. Nbd2 {[%clk 0:02:56.6]} 10... Ng6 {[%clk 0:03:02.4]} 11. Nf1 {[%clk
0:02:56.1]} 11... h5 {[%clk 0:02:59.1]} 12. Ne3 {[%clk 0:02:48.9]} 12... Nf4
{[%clk 0:02:26.5]} 13. g3 {[%clk 0:02:17.6]} 13... Ng6 {[%clk 0:01:55.6]} 14.
Nxg4 {[%clk 0:02:09.3]} 14... hxg4 {[%clk 0:01:56.5]} 15. Rxh8+ {[%clk
0:02:09.6]} 15... Bxh8 {[%clk 0:01:56.5]} 16. Nh2 {[%clk 0:02:03.3]} 16... Qa5+
{[%clk 0:01:54]} 17. Qd2 {[%clk 0:01:54.1]} 17... Qb6 {[%clk 0:01:47.7]} 18.
Nxg4 {[%clk 0:01:52.6]} 18... O-O-O {[%clk 0:01:47.3]} 19. a4 {[%clk 0:01:45.8]}
19... Bg7 {[%clk 0:01:46.6]} 20. Kf1 {[%clk 0:01:34.7]} 20... Rh8 {[%clk
0:01:44.1]} 21. Kg2 {[%clk 0:01:35.4]} 21... Qc7 {[%clk 0:01:40.8]} 22. Qg5
{[%clk 0:01:26.2]} 22... Qd7 {[%clk 0:01:28.3]} 23. Be3 {[%clk 0:01:18.5]} 23...
Bf8 {[%clk 0:01:21.5]} 24. Nf6 {[%clk 0:01:12.7]} 24... Qh3+ {[%clk 0:01:17.4]}
25. Kf3 {[%clk 0:01:13.5]} 25... Kc7 {[%clk 0:01:01.4]} 26. Ke2 {[%clk
0:00:50.3]} 26... Be7 {[%clk 0:00:51.9]} 27. c3 {[%clk 0:00:24]} 27... Rd8
{[%clk 0:00:47.4]} 28. d4 {[%clk 0:00:23.1]} 28... Qh8 {[%clk 0:00:43.1]} 29.
dxe5 {[%clk 0:00:11.5]} 29... dxe5 {[%clk 0:00:39.9]} 30. Bxc5 {[%clk
0:00:10.2]} 30... Qxf6 {[%clk 0:00:29]} 31. Qe3 {[%clk 0:00:09.5]} 31... Bxc5
{[%clk 0:00:27.7]} 32. Qxc5 {[%clk 0:00:09.9]} 32... Kb8 {[%clk 0:00:20.7]} 33.
Ra3 {[%clk 0:00:10.5]} 33... Qd6 {[%clk 0:00:19.1]} 34. Rb3+ {[%clk 0:00:09.6]}
34... Ka8 {[%clk 0:00:19.6]} 35. Qc4 {[%clk 0:00:06.4]} 35... Ne7 {[%clk
0:00:18.6]} 36. Kf1 {[%clk 0:00:05.4]} 36... Qd3+ {[%clk 0:00:17.2]} 37. Qxd3
{[%clk 0:00:05.1]} 37... Rxd3 {[%clk 0:00:18.1]} 38. Ke2 {[%clk 0:00:05.1]}
38... Rd7 {[%clk 0:00:17]} 39. Rb4 {[%clk 0:00:05]} 39... Rb7 {[%clk 0:00:16.5]}
40. Ke3 {[%clk 0:00:03.5]} 40... c5 {[%clk 0:00:14]} 41. Rb5 {[%clk 0:00:03.5]}
41... Rxb5 {[%clk 0:00:12.5]} 42. axb5 {[%clk 0:00:03.9]} 42... Kb7 {[%clk
0:00:13.1]} 43. c4 {[%clk 0:00:03.3]} 43... Kb6 {[%clk 0:00:12.8]} 44. f4 {[%clk
0:00:04.1]} 44... f6 {[%clk 0:00:12.4]} 45. fxe5 {[%clk 0:00:04.2]} 45... fxe5
{[%clk 0:00:13.1]} 46. g4 {[%clk 0:00:04.1]} 46... Ka5 {[%clk 0:00:13.1]} 47. g5
{[%clk 0:00:03.8]} 47... Kb4 {[%clk 0:00:13.3]} 48. Kd3 {[%clk 0:00:04.2]} 48...
Kb3 {[%clk 0:00:10.9]} 0-1